[Event "*** Titled Tuesday Blitz"]
[Site "Chess.com"]
[Date "2020.11.10"]
[Round "5"]
[White "Xeniya2005"]
[Black "dominikaf"]
[Result "1-0"]
[WhiteElo "2385"]
[BlackElo "2202"]
[TimeControl "180+1"]
[EndTime "10:58:29 PST"]
[Termination "Xeniya2005 won by checkmate"]

1. e4 {[%clk 0:03:00.9]} 1... e5 {[%clk 0:02:59.4]} 2. Nf3 {[%clk 0:03:00]} 2...
d6 {[%clk 0:02:57.8]} 3. Nc3 {[%clk 0:02:58.2]} 3... c5 {[%clk 0:02:57.7]} 4.
Bc4 {[%clk 0:02:56]} 4... Nc6 {[%clk 0:02:56.8]} 5. a4 {[%clk 0:02:52.6]} 5...
Be7 {[%clk 0:02:57]} 6. d3 {[%clk 0:02:49.6]} 6... Nf6 {[%clk 0:02:55.2]} 7. Be3
{[%clk 0:02:47]} 7... O-O {[%clk 0:02:55.1]} 8. h3 {[%clk 0:02:45.1]} 8... a6
{[%clk 0:02:49]} 9. O-O {[%clk 0:02:40.5]} 9... Rb8 {[%clk 0:02:42.2]} 10. Qd2
{[%clk 0:02:35.1]} 10... Nd4 {[%clk 0:02:36.7]} 11. Nh2 {[%clk 0:02:21]} 11...
b5 {[%clk 0:02:18.7]} 12. axb5 {[%clk 0:02:17.5]} 12... axb5 {[%clk 0:02:19.4]}
13. Ba2 {[%clk 0:02:10.4]} 13... Be6 {[%clk 0:02:09.5]} 14. Bxe6 {[%clk
0:01:55]} 14... fxe6 {[%clk 0:02:09.2]} 15. Ne2 {[%clk 0:01:52]} 15... d5 {[%clk
0:01:55.6]} 16. Bxd4 {[%clk 0:01:40.3]} 16... exd4 {[%clk 0:01:46.8]} 17. e5
{[%clk 0:01:37]} 17... Nd7 {[%clk 0:01:46.7]} 18. f4 {[%clk 0:01:33.9]} 18...
Qb6 {[%clk 0:01:46.7]} 19. Nf3 {[%clk 0:01:26.4]} 19... Ra8 {[%clk 0:01:36.6]}
20. Kh2 {[%clk 0:01:22.2]} 20... Ra7 {[%clk 0:01:22.9]} 21. g4 {[%clk
0:01:19.6]} 21... Rfa8 {[%clk 0:01:15.2]} 22. Rxa7 {[%clk 0:01:15.8]} 22... Rxa7
{[%clk 0:01:16.1]} 23. Ng3 {[%clk 0:01:14.8]} 23... Ra2 {[%clk 0:01:10.5]} 24.
Qc1 {[%clk 0:01:08.2]} 24... c4 {[%clk 0:01:09.5]} 25. f5 {[%clk 0:01:03.4]}
25... Nc5 {[%clk 0:01:03.5]} 26. Ng5 {[%clk 0:00:56.7]} 26... cxd3 {[%clk
0:00:53]} 27. f6 {[%clk 0:00:46.1]} 27... gxf6 {[%clk 0:00:35.3]} 28. exf6
{[%clk 0:00:44.3]} 28... Bd6 {[%clk 0:00:31.5]} 29. f7+ {[%clk 0:00:41.3]} 29...
Kf8 {[%clk 0:00:24.7]} 30. Nxh7+ {[%clk 0:00:30.3]} 30... Kg7 {[%clk 0:00:25]}
31. f8=Q+ {[%clk 0:00:26.3]} 31... Bxf8 {[%clk 0:00:24.3]} 32. Nxf8 {[%clk
0:00:27.2]} 32... dxc2 {[%clk 0:00:15.6]} 33. Qg5+ {[%clk 0:00:26.2]} 33... Kh8
{[%clk 0:00:14.8]} 34. Qh6+ {[%clk 0:00:24.6]} 34... Kg8 {[%clk 0:00:14.4]} 35.
Qh7# {[%clk 0:00:25.5]} 1-0

[Event "*** Titled Tuesday Blitz"]
[Site "Chess.com"]
[Date "2020.11.10"]
[Round "5"]
[White "WiktoriaPOL"]
[Black "Trickov"]
[Result "0-1"]
[WhiteElo "2096"]
[BlackElo "2332"]
[TimeControl "180+1"]
[EndTime "10:58:29 PST"]
[Termination "Trickov won on time"]

1. c4 {[%clk 0:03:00.9]} 1... c6 {[%clk 0:02:59.3]} 2. Nf3 {[%clk 0:03:00.1]}
2... d5 {[%clk 0:02:57.4]} 3. e3 {[%clk 0:02:58.9]} 3... Nf6 {[%clk 0:02:54.6]}
4. Nc3 {[%clk 0:02:56.9]} 4... Bg4 {[%clk 0:02:50.5]} 5. b3 {[%clk 0:02:52.5]}
5... e6 {[%clk 0:02:47.9]} 6. Be2 {[%clk 0:02:49.4]} 6... Nbd7 {[%clk
0:02:47.8]} 7. h3 {[%clk 0:02:46.5]} 7... Bh5 {[%clk 0:02:47.4]} 8. cxd5 {[%clk
0:02:42.4]} 8... exd5 {[%clk 0:02:41.3]} 9. d4 {[%clk 0:02:41.6]} 9... Bd6
{[%clk 0:02:38.4]} 10. Bd2 {[%clk 0:02:30.5]} 10... O-O {[%clk 0:02:36.4]} 11.
Rb1 {[%clk 0:02:21.5]} 11... Qe7 {[%clk 0:02:35]} 12. O-O {[%clk 0:02:12.1]}
12... Rfe8 {[%clk 0:02:34]} 13. Qc2 {[%clk 0:01:47.9]} 13... Ne4 {[%clk
0:02:15.2]} 14. Rfc1 {[%clk 0:00:44.1]} 14... Ba3 {[%clk 0:01:59.1]} 15. Rd1
{[%clk 0:00:41.3]} 15... Nxd2 {[%clk 0:01:50.8]} 16. Qxd2 {[%clk 0:00:39.8]}
16... Bb4 {[%clk 0:01:47]} 17. Qb2 {[%clk 0:00:36.8]} 17... a5 {[%clk
0:01:40.3]} 18. Qc2 {[%clk 0:00:14.1]} 18... Nf6 {[%clk 0:01:30.6]} 19. Ne5
{[%clk 0:00:12]} 19... Bxe2 {[%clk 0:01:19.2]} 20. Nxe2 {[%clk 0:00:12.9]} 20...
Ne4 {[%clk 0:01:18.9]} 21. f3 {[%clk 0:00:09.7]} 21... Nd6 {[%clk 0:01:17.2]}
22. e4 {[%clk 0:00:08.4]} 22... f6 {[%clk 0:01:14.3]} 23. Ng4 {[%clk 0:00:05.3]}
23... dxe4 {[%clk 0:01:13.7]} 24. fxe4 {[%clk 0:00:04.4]} 24... Qxe4 {[%clk
0:01:09.3]} 25. Qxe4 {[%clk 0:00:03.5]} 25... Rxe4 {[%clk 0:01:08.5]} 26. Kf2
{[%clk 0:00:01.5]} 26... Rd8 {[%clk 0:00:57.9]} 27. Ng3 {[%clk 0:00:01.1]} 27...
Ree8 {[%clk 0:00:31.7]} 28. d5 {[%clk 0:00:01.5]} 28... h5 {[%clk 0:00:28.6]}
0-1

[Event "*** Titled Tuesday Blitz"]
[Site "Chess.com"]
[Date "2020.11.10"]
[Round "5"]
[White "joppie2"]
[Black "vladislavkovalev"]
[Result "1-0"]
[WhiteElo "2971"]
[BlackElo "2857"]
[TimeControl "180+1"]
[EndTime "10:58:30 PST"]
[Termination "joppie2 won on time"]

1. e4 {[%clk 0:02:44.8]} 1... e5 {[%clk 0:03:00.3]} 2. Nf3 {[%clk 0:02:43.4]}
2... Nc6 {[%clk 0:03:00.8]} 3. Bb5 {[%clk 0:02:43.9]} 3... a6 {[%clk 0:03:01.4]}
4. Ba4 {[%clk 0:02:44.4]} 4... Nf6 {[%clk 0:03:01.5]} 5. O-O {[%clk 0:02:44.8]}
5... Be7 {[%clk 0:03:02.1]} 6. d3 {[%clk 0:02:45.2]} 6... b5 {[%clk 0:03:01.9]}
7. Bb3 {[%clk 0:02:45.7]} 7... d6 {[%clk 0:03:02.4]} 8. a4 {[%clk 0:02:45]} 8...
Bd7 {[%clk 0:02:58.6]} 9. c3 {[%clk 0:02:37.2]} 9... O-O {[%clk 0:02:58.5]} 10.
Bg5 {[%clk 0:02:36.4]} 10... h6 {[%clk 0:02:54.4]} 11. Bh4 {[%clk 0:02:35.5]}
11... Na5 {[%clk 0:02:46.2]} 12. Ba2 {[%clk 0:02:35.5]} 12... bxa4 {[%clk
0:02:40.6]} 13. Nbd2 {[%clk 0:02:30.5]} 13... Rb8 {[%clk 0:02:40.3]} 14. Qc2
{[%clk 0:02:26.3]} 14... Nh5 {[%clk 0:02:26.6]} 15. Bg3 {[%clk 0:02:24]} 15...
Nxg3 {[%clk 0:02:26.5]} 16. hxg3 {[%clk 0:02:24.9]} 16... c5 {[%clk 0:02:12.8]}
17. Bd5 {[%clk 0:02:16.8]} 17... Qb6 {[%clk 0:02:11.8]} 18. Ra2 {[%clk 0:02:09]}
18... Kh8 {[%clk 0:02:07]} 19. Rfa1 {[%clk 0:02:04.4]} 19... Nb3 {[%clk
0:01:58.7]} 20. Rb1 {[%clk 0:01:49.1]} 20... Na5 {[%clk 0:01:57.6]} 21. Rxa4
{[%clk 0:01:40.4]} 21... Bxa4 {[%clk 0:01:56.7]} 22. Qxa4 {[%clk 0:01:41.3]}
22... Qb5 {[%clk 0:01:39.9]} 23. Ra1 {[%clk 0:01:40.5]} 23... Bd8 {[%clk
0:01:00]} 24. Qxb5 {[%clk 0:01:40.3]} 24... Rxb5 {[%clk 0:00:52.9]} 25. b3
{[%clk 0:01:36.8]} 25... Bc7 {[%clk 0:00:50.8]} 26. Kf1 {[%clk 0:01:33.2]} 26...
g6 {[%clk 0:00:47.5]} 27. Ke2 {[%clk 0:01:32.1]} 27... Kg7 {[%clk 0:00:48.2]}
28. Ne1 {[%clk 0:01:31.7]} 28... Rfb8 {[%clk 0:00:37.4]} 29. Ra3 {[%clk
0:01:30.8]} 29... Bd8 {[%clk 0:00:19.4]} 30. Nc2 {[%clk 0:01:30.7]} 30... Bc7
{[%clk 0:00:10.1]} 31. Ne3 {[%clk 0:01:30.3]} 31... Bd8 {[%clk 0:00:10.6]} 32.
f4 {[%clk 0:01:29.4]} 32... Bc7 {[%clk 0:00:03.8]} 33. Nf3 {[%clk 0:01:28.7]}
33... Kf6 {[%clk 0:00:03.5]} 34. Nd2 {[%clk 0:01:22]} 34... Ke7 {[%clk
0:00:03.9]} 35. f5 {[%clk 0:01:12.3]} 35... Kf6 {[%clk 0:00:03.5]} 36. Kd1
{[%clk 0:01:05.3]} 36... h5 {[%clk 0:00:04]} 37. Kc2 {[%clk 0:01:05.4]} 37...
Kg7 {[%clk 0:00:04]} 38. Ra1 {[%clk 0:01:04.2]} 38... Kf6 {[%clk 0:00:04]} 39.
Rf1 {[%clk 0:01:03.9]} 39... Kg7 {[%clk 0:00:04.7]} 40. fxg6 {[%clk 0:01:03.7]}
40... f6 {[%clk 0:00:03.9]} 41. Bf7 {[%clk 0:01:02.2]} 41... R5b7 {[%clk
0:00:02.8]} 42. Nf5+ {[%clk 0:01:02.1]} 42... Kf8 {[%clk 0:00:03.4]} 43. Bd5
{[%clk 0:01:02.5]} 43... Bd8 {[%clk 0:00:03.9]} 44. Rh1 {[%clk 0:01:02.7]} 1-0

[Event "*** Titled Tuesday Blitz"]
[Site "Chess.com"]
[Date "2020.11.10"]
[Round "5"]
[White "SamuelGhimpu2003"]
[Black "Marianov_Podstavnikov"]
[Result "1-0"]
[WhiteElo "2564"]
[BlackElo "2249"]
[TimeControl "180+1"]
[EndTime "10:58:30 PST"]
[Termination "SamuelGhimpu2003 won by resignation"]

1. d4 {[%clk 0:02:52.3]} 1... Nf6 {[%clk 0:02:59.7]} 2. c4 {[%clk 0:02:51.7]}
2... e6 {[%clk 0:03:00]} 3. Nc3 {[%clk 0:02:49.3]} 3... Bb4 {[%clk 0:02:59.6]}
4. Qc2 {[%clk 0:02:49.2]} 4... b6 {[%clk 0:02:59.4]} 5. e4 {[%clk 0:02:46.9]}
5... c5 {[%clk 0:02:51.2]} 6. d5 {[%clk 0:02:45.6]} 6... Qe7 {[%clk 0:02:32.1]}
7. Ne2 {[%clk 0:02:43.3]} 7... exd5 {[%clk 0:02:28.3]} 8. exd5 {[%clk
0:02:44.2]} 8... d6 {[%clk 0:02:23.4]} 9. Bd2 {[%clk 0:02:41.9]} 9... O-O {[%clk
0:02:15.5]} 10. O-O-O {[%clk 0:02:41.5]} 10... g6 {[%clk 0:02:08.3]} 11. Ng3
{[%clk 0:02:36.1]} 11... Ng4 {[%clk 0:01:54.4]} 12. a3 {[%clk 0:02:20.5]} 12...
Nxf2 {[%clk 0:01:31.6]} 13. axb4 {[%clk 0:02:19.7]} 13... Nxd1 {[%clk
0:01:26.9]} 14. Nxd1 {[%clk 0:02:14.1]} 14... Nd7 {[%clk 0:01:20.5]} 15. Bd3
{[%clk 0:01:54.4]} 15... Ne5 {[%clk 0:01:13.1]} 16. Re1 {[%clk 0:01:53.9]} 16...
f5 {[%clk 0:01:11.2]} 17. Bf1 {[%clk 0:01:37.9]} 17... Bd7 {[%clk 0:01:07]} 18.
bxc5 {[%clk 0:01:35]} 18... bxc5 {[%clk 0:01:05.7]} 19. Nf2 {[%clk 0:01:35.9]}
19... Rab8 {[%clk 0:01:00.1]} 20. Nd3 {[%clk 0:01:34.5]} 20... Nxd3+ {[%clk
0:00:59.9]} 21. Bxd3 {[%clk 0:01:34.4]} 21... Qh4 {[%clk 0:00:51.6]} 22. Bc3
{[%clk 0:01:29.7]} 22... Rfe8 {[%clk 0:00:47.2]} 23. Rxe8+ {[%clk 0:00:42.6]}
23... Rxe8 {[%clk 0:00:48.1]} 24. Nf1 {[%clk 0:00:41.6]} 24... Qf4+ {[%clk
0:00:42.9]} 25. Kb1 {[%clk 0:00:33.4]} 25... a5 {[%clk 0:00:33.4]} 26. Bxa5
{[%clk 0:00:30.8]} 26... Ra8 {[%clk 0:00:32.5]} 27. Bc3 {[%clk 0:00:30.5]} 27...
Ba4 {[%clk 0:00:30.4]} 28. Qe2 {[%clk 0:00:27.6]} 28... Bd7 {[%clk 0:00:24]} 29.
Qe7 {[%clk 0:00:25.3]} 29... Ra1+ {[%clk 0:00:06.6]} 30. Kxa1 {[%clk 0:00:23.2]}
30... Qc1+ {[%clk 0:00:06.7]} 31. Ka2 {[%clk 0:00:23.8]} 1-0

[Event "*** Titled Tuesday Blitz"]
[Site "Chess.com"]
[Date "2020.11.10"]
[Round "5"]
[White "Oligan22"]
[Black "Kazmin_Dmitrij"]
[Result "1-0"]
[WhiteElo "2434"]
[BlackElo "2266"]
[TimeControl "180+1"]
[EndTime "10:58:30 PST"]
[Termination "Oligan22 won on time"]

1. e4 {[%clk 0:03:00.9]} 1... e5 {[%clk 0:02:58.5]} 2. Nf3 {[%clk 0:03:00.4]}
2... d6 {[%clk 0:02:58.1]} 3. Nc3 {[%clk 0:03:01.3]} 3... Nf6 {[%clk 0:02:57.9]}
4. d4 {[%clk 0:03:00.3]} 4... exd4 {[%clk 0:02:57.6]} 5. Nxd4 {[%clk 0:03:01.2]}
5... Be7 {[%clk 0:02:58]} 6. Be3 {[%clk 0:02:56.2]} 6... O-O {[%clk 0:02:57.9]}
7. f3 {[%clk 0:02:55.4]} 7... Re8 {[%clk 0:02:58]} 8. Qd2 {[%clk 0:02:55.4]}
8... c6 {[%clk 0:02:55.6]} 9. O-O-O {[%clk 0:02:54.6]} 9... b5 {[%clk
0:02:51.5]} 10. g4 {[%clk 0:02:48.1]} 10... b4 {[%clk 0:02:49.3]} 11. Nce2
{[%clk 0:02:46.6]} 11... c5 {[%clk 0:02:30.8]} 12. Nf5 {[%clk 0:02:46.1]} 12...
Bxf5 {[%clk 0:02:30.3]} 13. gxf5 {[%clk 0:02:47]} 13... Nbd7 {[%clk 0:02:24.9]}
14. Rg1 {[%clk 0:02:45.5]} 14... Kh8 {[%clk 0:02:15.8]} 15. Nf4 {[%clk
0:02:42.4]} 15... Ne5 {[%clk 0:02:14]} 16. Qg2 {[%clk 0:02:36.7]} 16... Rg8
{[%clk 0:02:08.8]} 17. Kb1 {[%clk 0:02:26.7]} 17... a5 {[%clk 0:02:00.6]} 18.
Bxc5 {[%clk 0:02:25.3]} 18... Qc7 {[%clk 0:01:51.7]} 19. Bd4 {[%clk 0:02:21]}
19... a4 {[%clk 0:01:48.9]} 20. Nd5 {[%clk 0:02:12.3]} 20... Nxd5 {[%clk
0:01:46.2]} 21. exd5 {[%clk 0:02:13.2]} 21... Bf6 {[%clk 0:01:42.8]} 22. f4
{[%clk 0:01:57.3]} 22... Nd7 {[%clk 0:01:40.3]} 23. Bb5 {[%clk 0:01:54.9]} 23...
Bxd4 {[%clk 0:01:34]} 24. Rxd4 {[%clk 0:01:55.4]} 24... Nf6 {[%clk 0:01:30.5]}
25. Rxb4 {[%clk 0:01:51.6]} 25... Qc5 {[%clk 0:01:29.1]} 26. Rxa4 {[%clk
0:01:29.3]} 26... Rab8 {[%clk 0:01:16.9]} 27. Bc6 {[%clk 0:01:24.9]} 27... Rxb2+
{[%clk 0:00:43.1]} 28. Ka1 {[%clk 0:00:31.7]} 28... Qc3 {[%clk 0:00:36]} 29. Qg3
{[%clk 0:00:26.9]} 29... Qxc2 {[%clk 0:00:11.5]} 30. Ra8 {[%clk 0:00:26.8]} 1-0

[Event "*** Titled Tuesday Blitz"]
[Site "Chess.com"]
[Date "2020.11.10"]
[Round "5"]
[White "QuintilianoR"]
[Black "djano"]
[Result "1-0"]
[WhiteElo "2701"]
[BlackElo "2477"]
[TimeControl "180+1"]
[EndTime "10:58:32 PST"]
[Termination "QuintilianoR won by checkmate"]

1. d4 {[%clk 0:03:00.9]} 1... Nf6 {[%clk 0:02:59.7]} 2. Nf3 {[%clk 0:03:00.4]}
2... g6 {[%clk 0:02:59.6]} 3. c4 {[%clk 0:02:59]} 3... Bg7 {[%clk 0:02:59.4]} 4.
Nc3 {[%clk 0:02:59.4]} 4... O-O {[%clk 0:02:58.5]} 5. e4 {[%clk 0:02:59.1]} 5...
d6 {[%clk 0:02:59]} 6. Be2 {[%clk 0:02:59.2]} 6... e5 {[%clk 0:02:57.9]} 7. O-O
{[%clk 0:02:59.5]} 7... Nc6 {[%clk 0:02:58.3]} 8. d5 {[%clk 0:02:59.4]} 8... Ne7
{[%clk 0:02:58]} 9. b4 {[%clk 0:02:59.7]} 9... a5 {[%clk 0:02:51.5]} 10. Ba3
{[%clk 0:02:58.8]} 10... axb4 {[%clk 0:02:41.5]} 11. Bxb4 {[%clk 0:02:59.7]}
11... Ne8 {[%clk 0:02:39.1]} 12. a4 {[%clk 0:02:57.3]} 12... f5 {[%clk
0:02:34.6]} 13. Nd2 {[%clk 0:02:37.8]} 13... Nf6 {[%clk 0:02:32]} 14. c5 {[%clk
0:02:25.2]} 14... f4 {[%clk 0:02:08.4]} 15. cxd6 {[%clk 0:02:17.2]} 15... cxd6
{[%clk 0:02:09.3]} 16. Nb5 {[%clk 0:02:06.8]} 16... Ra6 {[%clk 0:02:08.9]} 17.
Rc1 {[%clk 0:01:26.8]} 17... g5 {[%clk 0:02:08.2]} 18. Nc7 {[%clk 0:01:02.2]}
18... g4 {[%clk 0:01:53.6]} 19. Nxa6 {[%clk 0:01:00.2]} 19... bxa6 {[%clk
0:01:54.5]} 20. Rxc8 {[%clk 0:00:59.2]} 20... Qxc8 {[%clk 0:01:30.4]} 21. Bxd6
{[%clk 0:00:57.9]} 21... Ng6 {[%clk 0:01:21.9]} 22. Bxf8 {[%clk 0:00:55.8]}
22... Bxf8 {[%clk 0:01:22.8]} 23. Qc1 {[%clk 0:00:50.2]} 23... Qd8 {[%clk
0:01:16]} 24. Qc6 {[%clk 0:00:47.4]} 24... f3 {[%clk 0:01:12.9]} 25. Bxa6 {[%clk
0:00:39]} 25... Nf4 {[%clk 0:01:13.1]} 26. gxf3 {[%clk 0:00:26.3]} 26... gxf3
{[%clk 0:01:10.1]} 27. Nxf3 {[%clk 0:00:22.5]} 27... Nxe4 {[%clk 0:01:04.1]} 28.
Kh1 {[%clk 0:00:17.7]} 28... Kh8 {[%clk 0:00:56.6]} 29. Nxe5 {[%clk 0:00:13.6]}
29... Qh4 {[%clk 0:00:47.3]} 30. Qe8 {[%clk 0:00:09.3]} 30... Qf6 {[%clk
0:00:33.9]} 31. Nd7 {[%clk 0:00:07.2]} 31... Nxf2+ {[%clk 0:00:31.6]} 32. Rxf2
{[%clk 0:00:06.9]} 32... Qa1+ {[%clk 0:00:29.9]} 33. Rf1 {[%clk 0:00:06.5]}
33... Qb2 {[%clk 0:00:29.3]} 34. Qxf8# {[%clk 0:00:05.5]} 1-0

[Event "*** Titled Tuesday Blitz"]
[Site "Chess.com"]
[Date "2020.11.10"]
[Round "5"]
[White "zmeeed67"]
[Black "AldokhinIvan"]
[Result "0-1"]
[WhiteElo "2371"]
[BlackElo "2554"]
[TimeControl "180+1"]
[EndTime "10:58:32 PST"]
[Termination "AldokhinIvan won by resignation"]

1. e4 {[%clk 0:03:00.9]} 1... c5 {[%clk 0:02:52.8]} 2. g3 {[%clk 0:03:00.5]}
2... d5 {[%clk 0:02:49.7]} 3. exd5 {[%clk 0:02:59.7]} 3... Qxd5 {[%clk
0:02:48.1]} 4. Qf3 {[%clk 0:02:59.4]} 4... Qd8 {[%clk 0:02:30.5]} 5. Bg2 {[%clk
0:02:49.8]} 5... Nc6 {[%clk 0:02:29.5]} 6. Ne2 {[%clk 0:02:45.3]} 6... Nf6
{[%clk 0:02:25]} 7. h3 {[%clk 0:02:38.4]} 7... e5 {[%clk 0:02:23.2]} 8. d3
{[%clk 0:02:29.4]} 8... Be7 {[%clk 0:02:08.3]} 9. O-O {[%clk 0:02:27.9]} 9...
O-O {[%clk 0:02:07.6]} 10. a3 {[%clk 0:02:26.4]} 10... c4 {[%clk 0:01:57.5]} 11.
dxc4 {[%clk 0:02:14.7]} 11... e4 {[%clk 0:01:54.3]} 12. Qb3 {[%clk 0:01:47.3]}
12... Be6 {[%clk 0:01:37.8]} 13. Bd2 {[%clk 0:01:15.9]} 13... Qc8 {[%clk
0:01:31.6]} 14. Kh2 {[%clk 0:01:14.1]} 14... Ne5 {[%clk 0:01:30.2]} 15. Nbc3
{[%clk 0:00:42.4]} 15... Bxc4 {[%clk 0:01:18.2]} 16. Qa4 {[%clk 0:00:41.8]}
16... b5 {[%clk 0:01:17.6]} 17. Nxb5 {[%clk 0:00:15.1]} 17... Bxe2 {[%clk
0:01:16.7]} 18. Rfe1 {[%clk 0:00:15.3]} 18... Nf3+ {[%clk 0:01:16.5]} 19. Bxf3
{[%clk 0:00:14.7]} 19... Bxf3 {[%clk 0:01:16.6]} 20. Nd4 {[%clk 0:00:14.4]}
20... Bc5 {[%clk 0:01:05.7]} 21. Be3 {[%clk 0:00:12.1]} 21... Bxd4 {[%clk
0:01:01.8]} 22. Bxd4 {[%clk 0:00:09.8]} 22... Ng4+ {[%clk 0:00:55.9]} 23. Kg1
{[%clk 0:00:09.5]} 23... Ne5 {[%clk 0:00:42.7]} 24. Kh2 {[%clk 0:00:06.6]} 24...
Nc6 {[%clk 0:00:35.6]} 25. Be3 {[%clk 0:00:05.8]} 25... Qe6 {[%clk 0:00:31.2]}
26. c4 {[%clk 0:00:04.9]} 26... Ne5 {[%clk 0:00:30.4]} 27. b3 {[%clk 0:00:04.1]}
27... Ng4+ {[%clk 0:00:26.6]} 28. Kg1 {[%clk 0:00:03.7]} 28... Nxe3 {[%clk
0:00:26.7]} 29. Rxe3 {[%clk 0:00:03.2]} 29... Qxh3 {[%clk 0:00:26.7]} 0-1

[Event "*** Titled Tuesday Blitz"]
[Site "Chess.com"]
[Date "2020.11.10"]
[Round "5"]
[White "akanga001"]
[Black "WeAintSurePal"]
[Result "0-1"]
[WhiteElo "1922"]
[BlackElo "2305"]
[TimeControl "180+1"]
[EndTime "10:58:34 PST"]
[Termination "WeAintSurePal won on time"]

1. d4 {[%clk 0:03:00.9]} 1... Nf6 {[%clk 0:02:59.3]} 2. c4 {[%clk 0:02:59.7]}
2... e6 {[%clk 0:03:00.2]} 3. Nf3 {[%clk 0:02:58.4]} 3... Bb4+ {[%clk
0:03:00.3]} 4. Bd2 {[%clk 0:02:57]} 4... c5 {[%clk 0:03:00.1]} 5. e3 {[%clk
0:02:54.7]} 5... O-O {[%clk 0:02:58]} 6. g3 {[%clk 0:02:54.7]} 6... b6 {[%clk
0:02:56.1]} 7. Bg2 {[%clk 0:02:53.5]} 7... Bb7 {[%clk 0:02:55.8]} 8. O-O {[%clk
0:02:52.2]} 8... Bxd2 {[%clk 0:02:54]} 9. Nbxd2 {[%clk 0:02:50.7]} 9... cxd4
{[%clk 0:02:53.8]} 10. exd4 {[%clk 0:02:50]} 10... d6 {[%clk 0:02:54.2]} 11. Qc2
{[%clk 0:02:48.2]} 11... Nc6 {[%clk 0:02:53]} 12. a3 {[%clk 0:02:47]} 12... Rc8
{[%clk 0:02:51.2]} 13. b4 {[%clk 0:02:45.5]} 13... a6 {[%clk 0:02:50.8]} 14.
Rac1 {[%clk 0:02:38.7]} 14... Ne7 {[%clk 0:02:47.3]} 15. Rfe1 {[%clk 0:02:32.7]}
15... Rc7 {[%clk 0:02:47.4]} 16. Qd3 {[%clk 0:02:30]} 16... Qa8 {[%clk
0:02:47.2]} 17. Nh4 {[%clk 0:02:25]} 17... Rfc8 {[%clk 0:02:46.8]} 18. Bxb7
{[%clk 0:02:23.6]} 18... Qxb7 {[%clk 0:02:47.7]} 19. Ng2 {[%clk 0:02:21.7]}
19... Ng6 {[%clk 0:02:46.9]} 20. h4 {[%clk 0:02:18.5]} 20... h5 {[%clk
0:02:44.9]} 21. Nf3 {[%clk 0:02:11.8]} 21... a5 {[%clk 0:02:32.6]} 22. Ng5
{[%clk 0:02:10.6]} 22... axb4 {[%clk 0:02:31.3]} 23. axb4 {[%clk 0:02:09.6]}
23... Qa6 {[%clk 0:02:31.9]} 24. Ne3 {[%clk 0:02:01.2]} 24... d5 {[%clk
0:02:26.6]} 25. b5 {[%clk 0:02:01]} 25... dxc4 {[%clk 0:02:26.2]} 26. bxa6
{[%clk 0:01:46.4]} 26... cxd3 {[%clk 0:02:25.8]} 27. Rxc7 {[%clk 0:01:46.1]}
27... Rxc7 {[%clk 0:02:26.7]} 28. Ra1 {[%clk 0:01:44.9]} 28... Ra7 {[%clk
0:02:26.2]} 29. Nc4 {[%clk 0:01:38.5]} 29... Nd5 {[%clk 0:02:24.4]} 30. Ne4
{[%clk 0:01:36.4]} 30... Nb4 {[%clk 0:02:22.6]} 31. Nxb6 {[%clk 0:01:32.7]}
31... Rxa6 {[%clk 0:02:21.6]} 32. Rxa6 {[%clk 0:01:31.7]} 32... Nxa6 {[%clk
0:02:22.5]} 33. Nc4 {[%clk 0:01:24.2]} 33... Nb4 {[%clk 0:02:22.2]} 34. Kf1
{[%clk 0:01:17.1]} 34... Ne7 {[%clk 0:02:21.5]} 35. Ke1 {[%clk 0:01:16.1]} 35...
Ned5 {[%clk 0:02:21.1]} 36. Kd2 {[%clk 0:01:15.3]} 36... Kf8 {[%clk 0:02:15.5]}
37. Nc5 {[%clk 0:01:14.9]} 37... Nc6 {[%clk 0:02:11.8]} 38. Nb3 {[%clk
0:01:10.5]} 38... Ndb4 {[%clk 0:02:08.9]} 39. Nb2 {[%clk 0:01:08.6]} 39... Ke7
{[%clk 0:02:06.1]} 40. Nxd3 {[%clk 0:01:08.3]} 40... Nxd3 {[%clk 0:02:07]} 41.
Kxd3 {[%clk 0:01:08]} 41... Kd6 {[%clk 0:02:07.9]} 42. Kc4 {[%clk 0:01:03.5]}
42... f6 {[%clk 0:02:05.6]} 43. f4 {[%clk 0:01:00.7]} 43... Ne7 {[%clk
0:02:03.6]} 44. Nc5 {[%clk 0:00:58.9]} 44... Nf5 {[%clk 0:02:03]} 45. Ne4+
{[%clk 0:00:58.2]} 45... Kc6 {[%clk 0:02:02]} 46. Kd3 {[%clk 0:00:52.2]} 46...
Kb5 {[%clk 0:01:55.1]} 47. Kc3 {[%clk 0:00:50]} 47... Ka4 {[%clk 0:01:54.5]} 48.
Kc4 {[%clk 0:00:49.9]} 48... Ka3 {[%clk 0:01:53.6]} 49. d5 {[%clk 0:00:49.3]}
49... Ne3+ {[%clk 0:01:52.4]} 50. Kd4 {[%clk 0:00:45.5]} 50... Nxd5 {[%clk
0:01:52.1]} 51. Nc5 {[%clk 0:00:43.9]} 51... Nc7 {[%clk 0:01:50.4]} 52. Nd7
{[%clk 0:00:40.7]} 52... Kb4 {[%clk 0:01:47.6]} 53. Nf8 {[%clk 0:00:37.1]} 53...
Kb5 {[%clk 0:01:46.7]} 54. Nd7 {[%clk 0:00:17.5]} 54... Kc6 {[%clk 0:01:46]} 55.
Nc5 {[%clk 0:00:17.1]} 55... Kd6 {[%clk 0:01:45.3]} 56. Ne4+ {[%clk 0:00:17]}
56... Ke7 {[%clk 0:01:45.6]} 57. Nf2 {[%clk 0:00:16.7]} 57... Nb5+ {[%clk
0:01:44.9]} 58. Ke4 {[%clk 0:00:15.6]} 58... Nd6+ {[%clk 0:01:45.3]} 59. Kd4
{[%clk 0:00:14.6]} 59... Nf5+ {[%clk 0:01:45.7]} 60. Kd3 {[%clk 0:00:12.6]}
60... Nxg3 {[%clk 0:01:46.1]} 61. Ke3 {[%clk 0:00:11.9]} 61... Nf5+ {[%clk
0:01:46.5]} 62. Kf3 {[%clk 0:00:11.8]} 62... Nxh4+ {[%clk 0:01:47.4]} 63. Kg3
{[%clk 0:00:12.1]} 63... Nf5+ {[%clk 0:01:48.3]} 0-1